[Event "Early-Titled-Tuesday-Blitz-October-10-2023"]
[Site "Chess.com"]
[Date "2023.10.10"]
[Round "8"]
[White "mr_gustavo"]
[Black "DonJuanEGenaro"]
[Result "1-0"]
[WhiteElo "2642"]
[BlackElo "1900"]
[TimeControl "180+1"]
[EndTime "9:29:31 PDT"]
[Termination "mr_gustavo won on time"]

1. h4 {[%clk 0:02:59.6]} 1... d5 {[%clk 0:02:59.3]} 2. e3 {[%clk 0:02:58.9]}
2... e5 {[%clk 0:02:59.1]} 3. h5 {[%clk 0:02:58.9]} 3... h6 {[%clk 0:02:55.5]}
4. d4 {[%clk 0:02:57.7]} 4... exd4 {[%clk 0:02:53.6]} 5. exd4 {[%clk 0:02:57.3]}
5... Nf6 {[%clk 0:02:53.5]} 6. Be2 {[%clk 0:02:54]} 6... Bf5 {[%clk 0:02:52.1]}
7. Bf4 {[%clk 0:02:52.9]} 7... Bd6 {[%clk 0:02:51.7]} 8. Bxd6 {[%clk 0:02:52.5]}
8... Qxd6 {[%clk 0:02:51.6]} 9. Nd2 {[%clk 0:02:52.1]} 9... O-O {[%clk
0:02:48.7]} 10. Ngf3 {[%clk 0:02:49.3]} 10... c5 {[%clk 0:02:44.5]} 11. dxc5
{[%clk 0:02:47.8]} 11... Qxc5 {[%clk 0:02:44]} 12. c3 {[%clk 0:02:46.7]} 12...
Nc6 {[%clk 0:02:43.2]} 13. Nb3 {[%clk 0:02:45.5]} 13... Qd6 {[%clk 0:02:42.9]}
14. Nbd4 {[%clk 0:02:44.6]} 14... Bg4 {[%clk 0:02:42.3]} 15. O-O {[%clk
0:02:33.4]} 15... Bxh5 {[%clk 0:02:37]} 16. a4 {[%clk 0:02:27.2]} 16... Rfe8
{[%clk 0:02:36.3]} 17. Re1 {[%clk 0:02:24.7]} 17... Nxd4 {[%clk 0:02:28.3]} 18.
Nxd4 {[%clk 0:02:20.7]} 18... Bxe2 {[%clk 0:02:25.2]} 19. Rxe2 {[%clk
0:02:20.2]} 19... Rxe2 {[%clk 0:02:24]} 20. Qxe2 {[%clk 0:02:19.8]} 20... Re8
{[%clk 0:02:23.7]} 21. Qb5 {[%clk 0:02:18.2]} 21... Qd7 {[%clk 0:02:04.8]} 22.
Qxd7 {[%clk 0:02:10.4]} 22... Nxd7 {[%clk 0:02:04.1]} 23. a5 {[%clk 0:02:11.3]}
23... Nc5 {[%clk 0:02:03]} 24. Nb5 {[%clk 0:02:09.2]} 24... a6 {[%clk
0:02:01.3]} 25. Nc7 {[%clk 0:02:02.7]} 25... Re2 {[%clk 0:01:58.3]} 26. b4
{[%clk 0:02:00.4]} 26... Ne4 {[%clk 0:01:57.2]} 27. Nxd5 {[%clk 0:01:59.9]}
27... Nxf2 {[%clk 0:01:47.6]} 28. c4 {[%clk 0:01:54.8]} 28... Ng4 {[%clk
0:01:45.4]} 29. Kf1 {[%clk 0:01:49]} 29... Rf2+ {[%clk 0:01:44.1]} 30. Kg1
{[%clk 0:01:49]} 30... Rc2 {[%clk 0:01:43.7]} 31. c5 {[%clk 0:01:46.2]} 31...
Rd2 {[%clk 0:01:41.2]} 32. c6 {[%clk 0:01:44.7]} 32... bxc6 {[%clk 0:01:29.5]}
33. Ne7+ {[%clk 0:01:45]} 33... Kh7 {[%clk 0:01:28.4]} 34. Nxc6 {[%clk
0:01:45.9]} 34... Ne3 {[%clk 0:01:27.3]} 35. b5 {[%clk 0:01:45.2]} 35... Rxg2+
{[%clk 0:01:25.2]} 36. Kh1 {[%clk 0:01:44.8]} 36... Rc2 {[%clk 0:01:23.4]} 37.
b6 {[%clk 0:01:40.6]} 37... Rb2 {[%clk 0:01:17.6]} 38. Re1 {[%clk 0:01:37.5]}
38... Nd5 {[%clk 0:01:15.1]} 39. Ne5 {[%clk 0:01:17.6]} 39... Nxb6 {[%clk
0:01:03.3]} 40. axb6 {[%clk 0:01:18.5]} 40... Rxb6 {[%clk 0:01:02.4]} 41. Nxf7
{[%clk 0:01:19]} 41... a5 {[%clk 0:01:00.9]} 42. Ra1 {[%clk 0:01:16.9]} 42...
Ra6 {[%clk 0:01:00.4]} 43. Ra4 {[%clk 0:01:17.3]} 43... g5 {[%clk 0:00:55.9]}
44. Kg2 {[%clk 0:01:15.6]} 44... Kg6 {[%clk 0:00:55.9]} 45. Ne5+ {[%clk
0:01:13.3]} 45... Kf5 {[%clk 0:00:55.9]} 46. Nf3 {[%clk 0:01:14.2]} 46... h5
{[%clk 0:00:53.4]} 47. Kg3 {[%clk 0:01:11.8]} 47... h4+ {[%clk 0:00:51.9]} 48.
Kf2 {[%clk 0:01:12]} 48... Ra7 {[%clk 0:00:43.8]} 49. Nd4+ {[%clk 0:01:09.9]}
49... Kg6 {[%clk 0:00:42.5]} 50. Kf3 {[%clk 0:01:09.8]} 50... Kh5 {[%clk
0:00:41.4]} 51. Nf5 {[%clk 0:01:04.6]} 51... g4+ {[%clk 0:00:37.9]} 52. Kf4
{[%clk 0:01:04]} 52... h3 {[%clk 0:00:37.9]} 53. Kg3 {[%clk 0:00:56.1]} 53...
Kg5 {[%clk 0:00:37.3]} 54. Ne3 {[%clk 0:00:53.6]} 54... h2 {[%clk 0:00:31.2]}
55. Kxh2 {[%clk 0:00:52.4]} 55... Kh5 {[%clk 0:00:29.1]} 56. Kg3 {[%clk
0:00:51.9]} 56... Kg5 {[%clk 0:00:25.1]} 57. Nxg4 {[%clk 0:00:52.2]} 57... Kf5
{[%clk 0:00:24.9]} 58. Ne3+ {[%clk 0:00:52.7]} 58... Ke5 {[%clk 0:00:24.5]} 59.
Kf3 {[%clk 0:00:53.4]} 59... Kd6 {[%clk 0:00:23.9]} 60. Ke4 {[%clk 0:00:49.5]}
60... Kc5 {[%clk 0:00:23.6]} 61. Nd1 {[%clk 0:00:49.7]} 61... Kb5 {[%clk
0:00:23.4]} 62. Nc3+ {[%clk 0:00:49.1]} 62... Kc5 {[%clk 0:00:23.6]} 63. Kd3
{[%clk 0:00:49.7]} 63... Ra8 {[%clk 0:00:22.8]} 64. Rc4+ {[%clk 0:00:47.8]}
64... Kd6 {[%clk 0:00:20.9]} 65. Rh4 {[%clk 0:00:46.9]} 65... a4 {[%clk
0:00:19.8]} 66. Nxa4 {[%clk 0:00:46.3]} 66... Kd5 {[%clk 0:00:19.6]} 67. Rh5+
{[%clk 0:00:44.2]} 67... Kc6 {[%clk 0:00:19.3]} 68. Nc3 {[%clk 0:00:43.7]} 68...
Ra3 {[%clk 0:00:18.3]} 69. Kc4 {[%clk 0:00:43.6]} 69... Ra1 {[%clk 0:00:17.9]}
70. Rh6+ {[%clk 0:00:43.5]} 70... Kd7 {[%clk 0:00:17.5]} 71. Kc5 {[%clk
0:00:41.8]} 71... Rc1 {[%clk 0:00:16.5]} 72. Kd4 {[%clk 0:00:39.3]} 72... Rc2
{[%clk 0:00:15.9]} 73. Ne4 {[%clk 0:00:36.6]} 73... Ra2 {[%clk 0:00:14.8]} 74.
Kd5 {[%clk 0:00:36.2]} 74... Ke7 {[%clk 0:00:11.8]} 75. Rh7+ {[%clk 0:00:35.5]}
75... Kf8 {[%clk 0:00:11.6]} 76. Ke6 {[%clk 0:00:32.7]} 76... Ra6+ {[%clk
0:00:10.2]} 77. Nd6 {[%clk 0:00:31.3]} 77... Kg8 {[%clk 0:00:09.7]} 78. Rb7
{[%clk 0:00:31.6]} 78... Ra1 {[%clk 0:00:09.2]} 79. Kf6 {[%clk 0:00:31]} 79...
Rf1+ {[%clk 0:00:07.8]} 80. Nf5 {[%clk 0:00:30.4]} 80... Rc1 {[%clk 0:00:06.5]}
81. Ne7+ {[%clk 0:00:25.1]} 81... Kh7 {[%clk 0:00:05.4]} 82. Nf5+ {[%clk
0:00:16.1]} 82... Kg8 {[%clk 0:00:04.9]} 83. Rg7+ {[%clk 0:00:16.6]} 83... Kf8
{[%clk 0:00:04.7]} 84. Rf7+ {[%clk 0:00:15.3]} 84... Ke8 {[%clk 0:00:04.2]} 85.
Nd6+ {[%clk 0:00:08.3]} 85... Kd8 {[%clk 0:00:03.2]} 86. Ra7 {[%clk 0:00:05.5]}
86... Rf1+ {[%clk 0:00:02.6]} 87. Ke5 {[%clk 0:00:04.5]} 87... Re1+ {[%clk
0:00:02.7]} 88. Kd5 {[%clk 0:00:05.1]} 88... Rd1+ {[%clk 0:00:01.7]} 89. Ke5
{[%clk 0:00:05.3]} 89... Re1+ {[%clk 0:00:01.8]} 90. Ne4 {[%clk 0:00:05.9]} 1-0

[Event "Early-Titled-Tuesday-Blitz-October-10-2023"]
[Site "Chess.com"]
[Date "2023.10.10"]
[Round "8"]
[White "ChessQueen"]
[Black "Sergey85Rodchenkov"]
[Result "1/2-1/2"]
[WhiteElo "2708"]
[BlackElo "2503"]
[TimeControl "180+1"]
[EndTime "9:30:33 PDT"]
[Termination "Game drawn by repetition"]

1. e4 {[%clk 0:03:00.9]} 1... c5 {[%clk 0:03:00.1]} 2. c3 {[%clk 0:03:00.6]}
2... Nf6 {[%clk 0:02:59.6]} 3. e5 {[%clk 0:03:00.4]} 3... Nd5 {[%clk 0:03:00.2]}
4. Nf3 {[%clk 0:03:00.4]} 4... d6 {[%clk 0:03:00.1]} 5. Bb5+ {[%clk 0:02:59.1]}
5... Nc6 {[%clk 0:02:57.9]} 6. O-O {[%clk 0:02:51.2]} 6... e6 {[%clk 0:02:27.3]}
7. d4 {[%clk 0:02:44.5]} 7... a6 {[%clk 0:02:19.3]} 8. Bxc6+ {[%clk 0:02:42.1]}
8... bxc6 {[%clk 0:02:20.2]} 9. exd6 {[%clk 0:02:40.9]} 9... Bxd6 {[%clk
0:02:19.8]} 10. dxc5 {[%clk 0:02:39.8]} 10... Bxc5 {[%clk 0:02:19.3]} 11. Nbd2
{[%clk 0:02:37.6]} 11... O-O {[%clk 0:02:10.6]} 12. Ne4 {[%clk 0:02:34]} 12...
Be7 {[%clk 0:02:10.7]} 13. Qc2 {[%clk 0:02:24.1]} 13... h6 {[%clk 0:02:00.6]}
14. Rd1 {[%clk 0:02:16.2]} 14... Qc7 {[%clk 0:02:01]} 15. c4 {[%clk 0:01:49.4]}
15... Nf6 {[%clk 0:01:53.6]} 16. Nxf6+ {[%clk 0:01:34.6]} 16... Bxf6 {[%clk
0:01:54.5]} 17. c5 {[%clk 0:01:34.9]} 17... e5 {[%clk 0:01:36.9]} 18. Be3 {[%clk
0:01:09.2]} 18... Rb8 {[%clk 0:01:00.1]} 19. h3 {[%clk 0:00:58.4]} 19... Be6
{[%clk 0:00:54.5]} 20. Rd6 {[%clk 0:00:54.3]} 20... Be7 {[%clk 0:00:43.8]} 21.
Rxe6 {[%clk 0:00:49.8]} 21... fxe6 {[%clk 0:00:44.7]} 22. b3 {[%clk 0:00:49.8]}
22... Bf6 {[%clk 0:00:41.4]} 23. Re1 {[%clk 0:00:44.6]} 23... Rbd8 {[%clk
0:00:34]} 24. Qc4 {[%clk 0:00:43.9]} 24... Qd7 {[%clk 0:00:30.9]} 25. Qxa6
{[%clk 0:00:41]} 25... e4 {[%clk 0:00:21.1]} 26. Nh2 {[%clk 0:00:40.6]} 26...
Bd4 {[%clk 0:00:16.5]} 27. Qc4 {[%clk 0:00:28.1]} 27... Bxe3 {[%clk 0:00:15.2]}
28. Rxe3 {[%clk 0:00:28.9]} 28... Qd2 {[%clk 0:00:09.5]} 29. Qe2 {[%clk
0:00:20.8]} 29... Qxe2 {[%clk 0:00:04.9]} 30. Rxe2 {[%clk 0:00:21.3]} 30... Rd5
{[%clk 0:00:04.8]} 31. Rxe4 {[%clk 0:00:18.2]} 31... Rxc5 {[%clk 0:00:05.3]} 32.
Nf3 {[%clk 0:00:18.5]} 32... Rc1+ {[%clk 0:00:04.7]} 33. Kh2 {[%clk 0:00:18.9]}
33... Rc2 {[%clk 0:00:04.9]} 34. Kg3 {[%clk 0:00:16.3]} 34... Rxa2 {[%clk
0:00:04.8]} 35. Rxe6 {[%clk 0:00:16.6]} 35... Rb2 {[%clk 0:00:03.1]} 36. Rxc6
{[%clk 0:00:11.4]} 36... Rxb3 {[%clk 0:00:03.5]} 37. h4 {[%clk 0:00:10.8]} 37...
Rb7 {[%clk 0:00:03.7]} 38. Kh3 {[%clk 0:00:09.7]} 38... Re7 {[%clk 0:00:03.8]}
39. Rc3 {[%clk 0:00:09.8]} 39... Rfe8 {[%clk 0:00:04.1]} 40. g3 {[%clk
0:00:07.8]} 40... Rd7 {[%clk 0:00:04.6]} 41. Kg2 {[%clk 0:00:08]} 41... Rdd8
{[%clk 0:00:05.3]} 42. Rc2 {[%clk 0:00:08.1]} 42... Rf8 {[%clk 0:00:05.8]} 43.
Ne5 {[%clk 0:00:08]} 43... Rc8 {[%clk 0:00:06.2]} 44. Rb2 {[%clk 0:00:07.4]}
44... Rfe8 {[%clk 0:00:06.7]} 45. Ng6 {[%clk 0:00:07.4]} 45... Rb8 {[%clk
0:00:06.9]} 46. Ra2 {[%clk 0:00:06.9]} 46... Kh7 {[%clk 0:00:07.5]} 47. Nf4
{[%clk 0:00:06.6]} 47... Ra8 {[%clk 0:00:08]} 48. Rd2 {[%clk 0:00:06.9]} 48...
Re7 {[%clk 0:00:08.4]} 49. Rc2 {[%clk 0:00:07.1]} 49... Rb7 {[%clk 0:00:08.6]}
50. Rd2 {[%clk 0:00:07.3]} 50... Rab8 {[%clk 0:00:09.1]} 51. Rc2 {[%clk
0:00:07.6]} 51... Rb2 {[%clk 0:00:09.6]} 52. Rc7 {[%clk 0:00:07.7]} 52... Re8
{[%clk 0:00:10.1]} 53. h5 {[%clk 0:00:07.1]} 53... Ra8 {[%clk 0:00:10.2]} 54.
Ng6 {[%clk 0:00:07]} 54... Raa2 {[%clk 0:00:09.7]} 55. Rf7 {[%clk 0:00:06.1]}
55... Rb8 {[%clk 0:00:09]} 56. Nh4 {[%clk 0:00:05.7]} 56... Raa8 {[%clk
0:00:09.3]} 57. Rf5 {[%clk 0:00:05.7]} 57... Rf8 {[%clk 0:00:09.6]} 58. Re5
{[%clk 0:00:05.9]} 58... Ra2 {[%clk 0:00:10.1]} 59. Nf3 {[%clk 0:00:05.8]} 59...
Rf6 {[%clk 0:00:10]} 60. Rd5 {[%clk 0:00:06.1]} 60... Ra3 {[%clk 0:00:10.2]} 61.
Ne5 {[%clk 0:00:05.9]} 61... Ra2 {[%clk 0:00:10.2]} 62. Ng4 {[%clk 0:00:06.2]}
62... Rf7 {[%clk 0:00:09.4]} 63. Rd8 {[%clk 0:00:06.4]} 63... Rfa7 {[%clk
0:00:05.7]} 64. Rd5 {[%clk 0:00:06.2]} 64... Ra8 {[%clk 0:00:06]} 65. Rd7 {[%clk
0:00:06.3]} 65... Rf8 {[%clk 0:00:06.3]} 66. Kh3 {[%clk 0:00:05.8]} 66... Ra1
{[%clk 0:00:05.6]} 67. Kg2 {[%clk 0:00:05.6]} 67... Re1 {[%clk 0:00:05.9]} 68.
Rd5 {[%clk 0:00:05]} 68... Re6 {[%clk 0:00:05.9]} 69. Rc5 {[%clk 0:00:05.1]}
69... Rf7 {[%clk 0:00:05.6]} 70. Rd5 {[%clk 0:00:05.4]} 70... Re8 {[%clk
0:00:04.9]} 71. Ne3 {[%clk 0:00:04.8]} 71... Ra8 {[%clk 0:00:03.9]} 72. Rb5
{[%clk 0:00:05.4]} 72... Ra2 {[%clk 0:00:04]} 73. Ng4 {[%clk 0:00:05.4]} 73...
Re2 {[%clk 0:00:04.2]} 74. Rc5 {[%clk 0:00:05.5]} 74... Rf8 {[%clk 0:00:04.6]}
75. Rd5 {[%clk 0:00:05.8]} 75... Ree8 {[%clk 0:00:05.4]} 76. Rc5 {[%clk
0:00:06.1]} 76... Rc8 {[%clk 0:00:06.2]} 77. Rd5 {[%clk 0:00:06.6]} 77... Ra8
{[%clk 0:00:06.4]} 78. Rb5 {[%clk 0:00:07.1]} 78... Rfb8 {[%clk 0:00:06.7]} 79.
Rf5 {[%clk 0:00:07]} 79... Rb7 {[%clk 0:00:07.3]} 80. Rf4 {[%clk 0:00:07]} 80...
Rba7 {[%clk 0:00:08]} 81. Ne3 {[%clk 0:00:06.9]} 81... Ra5 {[%clk 0:00:08.5]}
82. g4 {[%clk 0:00:05.5]} 82... Ra3 {[%clk 0:00:07.5]} 83. Kg3 {[%clk
0:00:05.4]} 83... Re8 {[%clk 0:00:07.7]} 84. Rf3 {[%clk 0:00:04.9]} 84... Re4
{[%clk 0:00:07.7]} 85. Rf7 {[%clk 0:00:04.7]} 85... Rea4 {[%clk 0:00:04.9]} 86.
Re7 {[%clk 0:00:04.3]} 86... Ra7 {[%clk 0:00:05.3]} 87. Re6 {[%clk 0:00:04.1]}
87... R3a6 {[%clk 0:00:05.6]} 88. Re5 {[%clk 0:00:04.3]} 88... Rf7 {[%clk
0:00:06.1]} 89. Re4 {[%clk 0:00:03.5]} 89... Raf6 {[%clk 0:00:06.6]} 90. Nf5
{[%clk 0:00:04]} 90... Rc6 {[%clk 0:00:03.9]} 91. f3 {[%clk 0:00:04.1]} 91...
Rc3 {[%clk 0:00:04.2]} 92. Rf4 {[%clk 0:00:04.2]} 92... Rc1 {[%clk 0:00:04.2]}
93. Re4 {[%clk 0:00:04.5]} 93... Rg1+ {[%clk 0:00:04.6]} 94. Kf2 {[%clk
0:00:04.8]} 94... Ra1 {[%clk 0:00:05.5]} 95. Kg3 {[%clk 0:00:05.6]} 95... Raa7
{[%clk 0:00:06.1]} 96. Re6 {[%clk 0:00:05.9]} 96... Rad7 {[%clk 0:00:06]} 97.
Rg6 {[%clk 0:00:06.5]} 97... Rf6 {[%clk 0:00:05.8]} 98. Rxf6 {[%clk 0:00:06.6]}
98... gxf6 {[%clk 0:00:06.4]} 99. Nh4 {[%clk 0:00:07.2]} 99... Rd3 {[%clk
0:00:06.6]} 100. Ng6 {[%clk 0:00:07.8]} 100... Rd5 {[%clk 0:00:06.5]} 101. Nf4
{[%clk 0:00:08.3]} 101... Rg5 {[%clk 0:00:06.3]} 102. Ng6 {[%clk 0:00:09.2]}
102... Ra5 {[%clk 0:00:04.8]} 103. Nh4 {[%clk 0:00:09.8]} 103... Ra4 {[%clk
0:00:03.8]} 104. Nf5 {[%clk 0:00:10.4]} 104... Ra5 {[%clk 0:00:03.1]} 105. Kg2
{[%clk 0:00:10.9]} 105... Ra2+ {[%clk 0:00:03.3]} 106. Kg3 {[%clk 0:00:11.5]}
106... Ra4 {[%clk 0:00:04.2]} 107. Kf2 {[%clk 0:00:11.6]} 107... Rb4 {[%clk
0:00:03.5]} 108. Ke3 {[%clk 0:00:12.1]} 108... Ra4 {[%clk 0:00:03.9]} 109. f4
{[%clk 0:00:11.7]} 109... Ra3+ {[%clk 0:00:03.9]} 110. Ke4 {[%clk 0:00:11.7]}
110... Ra1 {[%clk 0:00:04]} 111. Nd6 {[%clk 0:00:11.2]} 111... Rg1 {[%clk
0:00:03.8]} 112. Kf5 {[%clk 0:00:11.4]} 112... Rd1 {[%clk 0:00:03.5]} 113. Ne8
{[%clk 0:00:11.9]} 113... Rd5+ {[%clk 0:00:02.3]} 114. Ke6 {[%clk 0:00:12.2]}
114... Rd4 {[%clk 0:00:02.4]} 115. Nxf6+ {[%clk 0:00:12.8]} 115... Kg7 {[%clk
0:00:02.9]} 116. Ke5 {[%clk 0:00:13.5]} 116... Rd3 {[%clk 0:00:02.9]} 117. Nd5
{[%clk 0:00:13.7]} 117... Rg3 {[%clk 0:00:03]} 118. Kf5 {[%clk 0:00:13]} 118...
Ra3 {[%clk 0:00:03.5]} 119. Nc7 {[%clk 0:00:11.4]} 119... Ra5+ {[%clk
0:00:03.6]} 120. Ke4 {[%clk 0:00:11.8]} 120... Ra7 {[%clk 0:00:04.2]} 121. Ne6+
{[%clk 0:00:11.9]} 121... Kf6 {[%clk 0:00:04.8]} 122. Nd4 {[%clk 0:00:12.1]}
122... Ra4 {[%clk 0:00:05]} 123. Ke3 {[%clk 0:00:12.4]} 123... Ra3+ {[%clk
0:00:05.4]} 124. Ke4 {[%clk 0:00:12.9]} 124... Ra4 {[%clk 0:00:06]} 125. Ke3
{[%clk 0:00:12.9]} 125... Ra3+ {[%clk 0:00:06.6]} 126. Ke4 {[%clk 0:00:13]}
126... Ra4 {[%clk 0:00:07.3]} 1/2-1/2

[Event "Early-Titled-Tuesday-Blitz-October-10-2023"]
[Site "Chess.com"]
[Date "2023.10.10"]
[Round "9"]
[White "chessculator16"]
[Black "chenrip"]
[Result "0-1"]
[WhiteElo "2305"]
[BlackElo "2490"]
[TimeControl "180+1"]
[EndTime "9:38:58 PDT"]
[Termination "chenrip won by resignation"]

1. d4 {[%clk 0:03:00.9]} 1... d5 {[%clk 0:02:50.6]} 2. c4 {[%clk 0:03:01.4]}
2... e5 {[%clk 0:02:50.4]} 3. dxe5 {[%clk 0:03:00.7]} 3... d4 {[%clk 0:02:50.2]}
4. Nf3 {[%clk 0:03:01.3]} 4... Nc6 {[%clk 0:02:48.1]} 5. a3 {[%clk 0:03:01.7]}
5... Be6 {[%clk 0:02:47.1]} 6. Qc2 {[%clk 0:02:58.7]} 6... Nge7 {[%clk
0:02:45.6]} 7. b4 {[%clk 0:02:58.8]} 7... Ng6 {[%clk 0:02:45.7]} 8. Bb2 {[%clk
0:02:59.1]} 8... Ngxe5 {[%clk 0:02:43.8]} 9. Nbd2 {[%clk 0:02:54.9]} 9... Qd7
{[%clk 0:02:35]} 10. Nxd4 {[%clk 0:02:52.8]} 10... Nxd4 {[%clk 0:02:31.4]} 11.
Bxd4 {[%clk 0:02:46.8]} 11... Qxd4 {[%clk 0:02:31]} 12. Rc1 {[%clk 0:02:47.3]}
12... O-O-O {[%clk 0:02:27.8]} 13. e3 {[%clk 0:02:46.3]} 13... Nd3+ {[%clk
0:02:20.1]} 14. Bxd3 {[%clk 0:02:44.2]} 14... Qxd3 {[%clk 0:02:20.5]} 15. Qxd3
{[%clk 0:02:45.1]} 15... Rxd3 {[%clk 0:02:20.6]} 16. Ke2 {[%clk 0:02:43.9]}
16... Rxa3 {[%clk 0:02:20.5]} 17. c5 {[%clk 0:02:44.5]} 17... Be7 {[%clk
0:02:19.2]} 18. Rhd1 {[%clk 0:02:41.7]} 18... Rd8 {[%clk 0:02:14.1]} 19. Ne4
{[%clk 0:02:39.7]} 19... Ra2+ {[%clk 0:02:14]} 20. Kf3 {[%clk 0:02:39.2]} 20...
Bd5 {[%clk 0:02:10.6]} 21. g4 {[%clk 0:02:38.4]} 21... Bxe4+ {[%clk 0:02:07.5]}
22. Kxe4 {[%clk 0:02:38.5]} 22... Rxd1 {[%clk 0:02:06.1]} 23. Rxd1 {[%clk
0:02:38.6]} 23... Rxf2 {[%clk 0:02:06.7]} 0-1

[Event "Early-Titled-Tuesday-Blitz-October-10-2023"]
[Site "Chess.com"]
[Date "2023.10.10"]
[Round "9"]
[White "ajedrezhoy"]
[Black "Cheer_Down"]
[Result "0-1"]
[WhiteElo "2361"]
[BlackElo "2494"]
[TimeControl "180+1"]
[EndTime "9:39:54 PDT"]
[Termination "Cheer_Down won by resignation"]

1. c4 {[%clk 0:02:56]} 1... Nf6 {[%clk 0:02:59.1]} 2. Nc3 {[%clk 0:02:55.3]}
2... e6 {[%clk 0:02:55.4]} 3. Nf3 {[%clk 0:02:53.5]} 3... d5 {[%clk 0:02:55.5]}
4. e3 {[%clk 0:02:53.7]} 4... dxc4 {[%clk 0:02:53.2]} 5. Bxc4 {[%clk 0:02:52.8]}
5... a6 {[%clk 0:02:53.6]} 6. d4 {[%clk 0:02:51.9]} 6... b5 {[%clk 0:02:52.1]}
7. Bb3 {[%clk 0:02:52]} 7... c5 {[%clk 0:02:52.4]} 8. dxc5 {[%clk 0:02:50]} 8...
Qxd1+ {[%clk 0:02:51.7]} 9. Kxd1 {[%clk 0:02:45.5]} 9... Bxc5 {[%clk 0:02:51.8]}
10. a4 {[%clk 0:02:44.1]} 10... b4 {[%clk 0:02:47.1]} 11. Ne2 {[%clk 0:02:43.6]}
11... Bb7 {[%clk 0:02:44.6]} 12. Ne1 {[%clk 0:02:39]} 12... Nc6 {[%clk
0:02:42.9]} 13. Nd3 {[%clk 0:02:38.1]} 13... O-O-O {[%clk 0:02:39.2]} 14. Kc2
{[%clk 0:02:36.7]} 14... Rxd3 {[%clk 0:02:25.9]} 15. Kxd3 {[%clk 0:02:35.6]}
15... Ne5+ {[%clk 0:02:25.9]} 16. Kd2 {[%clk 0:02:30.6]} 16... Bxg2 {[%clk
0:02:17.8]} 17. Rd1 {[%clk 0:02:29.6]} 17... Ne4+ {[%clk 0:02:04.5]} 18. Kc2
{[%clk 0:02:28]} 18... Nxf2 {[%clk 0:02:02.4]} 19. Nd4 {[%clk 0:02:00.3]} 19...
Be4+ {[%clk 0:01:53.8]} 20. Kd2 {[%clk 0:02:00.2]} 20... Nxd1 {[%clk 0:01:46]}
21. Bxd1 {[%clk 0:01:59.7]} 21... Rd8 {[%clk 0:01:44.5]} 0-1

[Event "Early-Titled-Tuesday-Blitz-October-10-2023"]
[Site "Chess.com"]
[Date "2023.10.10"]
[Round "9"]
[White "Mr_Lion22"]
[Black "UK_23"]
[Result "1-0"]
[WhiteElo "2500"]
[BlackElo "2364"]
[TimeControl "180+1"]
[EndTime "9:40:18 PDT"]
[Termination "Mr_Lion22 won by checkmate"]

1. d4 {[%clk 0:02:42.9]} 1... d5 {[%clk 0:02:56.4]} 2. c4 {[%clk 0:02:43.8]}
2... e6 {[%clk 0:02:53.2]} 3. Nc3 {[%clk 0:02:44.4]} 3... Nf6 {[%clk 0:02:51]}
4. cxd5 {[%clk 0:02:44.8]} 4... exd5 {[%clk 0:02:51.9]} 5. Bg5 {[%clk
0:02:44.6]} 5... Be7 {[%clk 0:02:50.7]} 6. e3 {[%clk 0:02:44.8]} 6... O-O {[%clk
0:02:51.3]} 7. Bd3 {[%clk 0:02:44.9]} 7... Re8 {[%clk 0:02:51.5]} 8. Nf3 {[%clk
0:02:44.9]} 8... c6 {[%clk 0:02:49.1]} 9. Qc2 {[%clk 0:02:45.3]} 9... Nbd7
{[%clk 0:02:48]} 10. O-O-O {[%clk 0:02:44]} 10... b5 {[%clk 0:02:46]} 11. g4
{[%clk 0:02:40]} 11... b4 {[%clk 0:02:42.4]} 12. Na4 {[%clk 0:02:37.3]} 12...
Bb7 {[%clk 0:02:39]} 13. Bxf6 {[%clk 0:02:17.6]} 13... Nxf6 {[%clk 0:02:37.5]}
14. Ne5 {[%clk 0:02:18.1]} 14... Qa5 {[%clk 0:02:28.6]} 15. g5 {[%clk
0:02:16.3]} 15... Ne4 {[%clk 0:02:24.6]} 16. f3 {[%clk 0:02:15.6]} 16... f6
{[%clk 0:02:15.6]} 17. gxf6 {[%clk 0:01:46.4]} 17... Nxf6 {[%clk 0:02:13.5]} 18.
Rhg1 {[%clk 0:01:46.9]} 18... Rac8 {[%clk 0:02:03.8]} 19. Bxh7+ {[%clk
0:01:32.5]} 19... Nxh7 {[%clk 0:01:48.7]} 20. Rxg7+ {[%clk 0:01:33]} 20... Kxg7
{[%clk 0:01:43.6]} 21. Qg6+ {[%clk 0:01:33.1]} 21... Kh8 {[%clk 0:01:43.9]} 22.
Nf7# {[%clk 0:01:33.3]} 1-0

[Event "Early-Titled-Tuesday-Blitz-October-10-2023"]
[Site "Chess.com"]
[Date "2023.10.10"]
[Round "9"]
[White "DefiantChair"]
[Black "Cayse"]
[Result "0-1"]
[WhiteElo "2632"]
[BlackElo "2850"]
[TimeControl "180+1"]
[EndTime "9:40:23 PDT"]
[Termination "Cayse won by resignation"]

1. e4 {[%clk 0:03:00.9]} 1... e5 {[%clk 0:02:59.6]} 2. Nf3 {[%clk 0:03:01.3]}
2... Nc6 {[%clk 0:02:59.8]} 3. Bb5 {[%clk 0:03:02]} 3... a6 {[%clk 0:02:59.8]}
4. Ba4 {[%clk 0:03:02.4]} 4... Nf6 {[%clk 0:02:59.5]} 5. O-O {[%clk 0:03:03.1]}
5... Be7 {[%clk 0:02:59.4]} 6. Re1 {[%clk 0:03:03]} 6... b5 {[%clk 0:02:59.3]}
7. Bb3 {[%clk 0:03:03.7]} 7... O-O {[%clk 0:02:59.6]} 8. c3 {[%clk 0:03:00.6]}
8... d6 {[%clk 0:02:59.5]} 9. h3 {[%clk 0:03:00.3]} 9... Na5 {[%clk 0:02:54.8]}
10. Bc2 {[%clk 0:03:00.1]} 10... c5 {[%clk 0:02:55.5]} 11. d4 {[%clk 0:02:59.4]}
11... Qc7 {[%clk 0:02:56.1]} 12. Nbd2 {[%clk 0:02:58.8]} 12... Be6 {[%clk
0:02:56]} 13. b3 {[%clk 0:02:45.7]} 13... cxd4 {[%clk 0:02:54]} 14. cxd4 {[%clk
0:02:44.4]} 14... Rfc8 {[%clk 0:02:54.7]} 15. d5 {[%clk 0:01:09.5]} 15... Bxd5
{[%clk 0:02:33.1]} 16. Bd3 {[%clk 0:00:49.2]} 16... Qc3 {[%clk 0:02:27.5]} 17.
Qe2 {[%clk 0:00:47.9]} 17... Qxa1 {[%clk 0:02:24.1]} 18. Ba3 {[%clk 0:00:46.2]}
18... Qxa2 {[%clk 0:02:23.5]} 19. exd5 {[%clk 0:00:46.6]} 19... Qxa3 {[%clk
0:02:23.1]} 0-1